Cogmind - Beta 11 X4 @@@ ROGUE MODE // 2021.05.30 @ 20:10:55 Player: Terminus Result: Destroyed by S-27 Virus with Autogun Performance ------------- Evolutions (3) 1500 Regions Visited (10) 2000 Robots Destroyed (172) 860 Value Destroyed (4532) 4532 Prototype IDs (8) 160 Alien Tech Used (0) 0 Bonus (173) 173 TOTAL SCORE: 9225 Bonus ------- High Alert Combat Kills 100 Follower Combat Kills 73 Cogmind --------- Core Integrity 0/700 Matter 44/300 Energy 99/100 System Corruption 1% Temperature Cool (0) Movement Core (50) Location -7/Lower Caves Parts ------- > --- POWER (1) -------- (None) > --- PROPULSION (3) --- (None) > --- UTILITY (6) ------ Improved Signal Interpreter Hacking Suite System Shield > --- WEAPON (3) ------- (None) > --- INVENTORY (5) ---- Light Angular Momentum Engine Melee Analysis Suite Actuator Array Plasma Cutter Mining Claw Peak State ------------ > --- POWER ------------ Heavy Ion Engine > --- PROPULSION ------- Carbon-fiber Leg Carbon-fiber Leg Improved Carbon-fiber Leg > --- UTILITY ---------- Cooling System Large Storage Unit Improved Signal Interpreter Improved Medium Armor Plating Hacking Suite System Shield > --- WEAPON ----------- Autogun Gauss Rifle Gauss Rifle > --- INVENTORY -------- Light Angular Momentum Engine Aluminum Leg Improved Sensor Array Melee Analysis Suite Actuator Array Improved Medium Armor Plating Improved Assault Rifle Improved Light Cannon Rocket Launcher Plasma Cutter Mining Claw Katana [Rating: 42] Favorites ----------- Power Heavy Ion Engine Engine Heavy Ion Engine Propulsion Aluminum Leg Leg Aluminum Leg Utility Large Storage Unit Device Cooling System Storage Large Storage Unit Processor Improved Signal Interpreter Hackware Hacking Suite Protection Hardened Light Armor Plating Weapon Advanced Beam Cannon Energy Gun Spread Laser Energy Cannon Advanced Beam Cannon Ballistic Gun Autogun Ballistic Cannon Improved Light Cannon Launcher Mini Grenade Launcher Slashing Weapon Katana Build | -11 -10 -10 -9 -9 -9 -8 -8 -7 -7 -7 ------- Run | Scr Mat Min Mat Min Exi Min Mat Fac Low Low Slots Evolved 6 | . . . 2 . . . 2 2 . . Power . | . . . . . . . . . . . Propulsion 1 | . . . . . . . 1 . . . Utility 4 | . . . 1 . . . 1 2 . . Weapon 1 | . . . 1 . . . . . . . Parts Attached 144 | 6 21 3 31 7 . 4 25 28 5 14 Power 8 | 1 2 1 3 . . . 1 . . . Engine 8 | 1 2 1 3 . . . 1 . . . Core . | . . . . . . . . . . . Reactor . | . . . . . . . . . . . Propulsion 26 | 2 7 1 6 1 . 1 5 1 . 2 Treads . | . . . . . . . . . . . Leg 26 | 2 7 1 6 1 . 1 5 1 . 2 Wheel . | . . . . . . . . . . . Hover . | . . . . . . . . . . . Flight . | . . . . . . . . . . . Utility 45 | 1 4 . 6 4 . . 9 16 2 3 Device 19 | . 2 . 2 2 . . 4 7 1 1 Storage 4 | 1 1 . 2 . . . . . . . Processor 1 | . . . . . . . . 1 . . Hackware 3 | . . . . . . . 1 2 . . Protection 18 | . 1 . 2 2 . . 4 6 1 2 Artifact . | . . . . . . . . . . . Weapon 65 | 2 8 1 16 2 . 3 10 11 3 9 Energy Gun 12 | 1 4 1 5 . . 1 . . . . Energy Cannon 4 | . . . 2 . . 1 1 . . . Ballistic Gun 30 | 1 4 . 5 1 . . 8 4 2 5 Ballistic Cannon 4 | . . . 3 . . . . 1 . . Launcher 9 | . . . 1 1 . 1 1 2 1 2 Special Weapon . | . . . . . . . . . . . Impact Weapon . | . . . . . . . . . . . Slashing Weapon 6 | . . . . . . . . 4 . 2 Piercing Weapon . | . . . . . . . . . . . Special Melee Weapon . | . . . . . . . . . . . Unidentified Prototypes 1 | . . . . 1 . . . . . . Parts Lost 28 | . 2 1 4 1 . 1 3 1 . 15 Power 1 | . . . . . . . . . . 1 Propulsion 7 | . 1 . 1 . . . 1 . . 4 Utility 7 | . . . . 1 . . 1 1 . 4 Weapon 13 | . 1 1 3 . . 1 1 . . 6 Highest Loss Streak 15 | . 1 1 2 1 . 1 3 1 . 15 Average Slot Usage (%) 98 | . 98 100 99 99 100 100 97 99 100 86 Engine 10 | . 14 14 11 11 11 11 9 7 7 5 Leg 23 | . 27 28 22 22 22 22 26 23 23 18 Device 9 | . 6 . 11 10 11 11 9 14 14 11 Storage 10 | . 14 14 11 11 11 11 9 7 7 6 Processor 1 | . . . . . . . . 7 7 7 Hackware 4 | . . . . . . . 9 13 15 15 Protection 8 | . 5 14 11 11 11 11 7 1 . . Energy Gun 6 | . 14 14 13 . . 9 3 . . . Energy Cannon 5 | . . . 4 22 22 12 2 . . . Ballistic Gun 15 | . 14 14 14 10 11 11 20 17 22 17 Naked Turns . | . . . . . . . . . . . Heaviest Build 47 | 12 32 32 47 46 46 47 47 47 46 40 Greatest Support 48 | 20 20 20 20 20 20 25 43 48 48 48 Greatest Overweight (x) 2 | 2 2 1 2 2 2 2 1 1 . 1 Average Overweight (x) . | . . 1 1 1 2 1 . . . . Largest Inventory Capacity 15 | 8 15 15 15 15 15 15 15 15 15 15 Average Capacity 14 | 6 13 15 15 15 15 15 15 15 15 13 Most Carried 15 | 1 15 15 15 15 15 15 15 15 15 15 Average Carried 13 | . 9 14 14 14 14 14 14 14 15 12 Final Capacity 15 | 8 15 15 15 15 15 15 15 15 15 5 Final Carried 15 | 1 15 14 15 15 14 15 15 15 15 5 Class Distribution -------------------- 43% | Tank 16% | Mutant 14% | Scavenger-Tank 10% | Scavenger-Skirmisher 10% | Scavenger-Mutant 3% | Scavenger-Gunner Dominant Class ---------------- Mutant | -10/Materials Mutant | -10/Mines Tank | -9/Materials Tank | -9/Mines Tank | -9/Exiles Scavenger-Tank | -8/Mines Scavenger-Tank | -8/Materials Scavenger-Skirmisher | -7/Factory Scavenger-Skirmisher | -7/Lower Caves Scavenger-Skirmisher | -7/Lower Caves Resources | -11 -10 -10 -9 -9 -9 -8 -8 -7 -7 -7 ----------- Run | Scr Mat Min Mat Min Exi Min Mat Fac Low Low Matter Collected 3533 | 263 403 135 848 150 . 81 812 657 154 30 Remotely . | . . . . . . . . . . . Salvage Created 6139 | 88 854 162 1582 551 . 179 1599 715 169 240 Parts 344 | 1 51 10 90 25 . 5 98 40 11 13 Haulers Intercepted 12 | . 2 . 5 . . . 5 . . . Recyclers Shooed 8 | . . 2 3 . . . . 3 . . Parts Field Recycled . | . . . . . . . . . . . Retrieved Matter . | . . . . . . . . . . . Parts Self-Destructed 31 | . . . . . . . . . 12 19 Prevented . | . . . . . . . . . . . Kills | -11 -10 -10 -9 -9 -9 -8 -8 -7 -7 -7 ------- Run | Scr Mat Min Mat Min Exi Min Mat Fac Low Low Combat Hostiles Destroyed 115 | . 13 5 28 16 . 3 23 10 7 10 Guns 72 | . 12 5 23 3 . 2 17 5 3 2 Cannons 12 | . . . . 10 . . 2 . . . AOE 30 | . 1 . 5 2 . 1 4 5 4 8 Classes Destroyed 15 | 1 6 1 3 2 . . . 2 . . Worker 11 | . 1 . 4 . . . 4 2 . . Builder 4 | . . 1 1 . . . 1 1 . . Tunneler 1 | . . . 1 . . . . . . . Hauler 12 | . 2 . 5 . . . 5 . . . Recycler 15 | 1 2 . 4 . . 1 4 3 . . Operator 3 | . 1 . 1 . . . . 1 . . Watcher 13 | . 3 . 4 . . . 4 2 . . Swarmer 33 | . 3 3 6 2 . . 9 . 4 6 Grunt 54 | . 10 2 13 10 . 3 4 7 2 3 Brawler 3 | . . . . 2 . . . . . 1 Duelist 2 | . . . 1 . . . 1 . . . Sentry 18 | . . . 8 . . . 9 . 1 . Hunter 1 | . . . . . . . . 1 . . Programmer 2 | . . . . . . . . 2 . . Assembled 2 | . . . . 2 . . . . . . Best Kill Streak 12 | 1 4 3 7 5 . 4 12 5 4 6 Combat Bots Only 6 | . 3 3 5 5 . 3 4 3 4 6 Max Kills in Single Turn 4 | 1 1 1 2 2 . 1 3 2 3 4 Gunslinging . | . . . . . . . . . . . Exploded 4 | . 1 . 2 2 . 1 2 2 3 4 Melee . | . . . . . . . . . . . Uniques/NPCs Destroyed . | . . . . . . . . . . . Combat | -11 -10 -10 -9 -9 -9 -8 -8 -7 -7 -7 -------- Run | Scr Mat Min Mat Min Exi Min Mat Fac Low Low Damage Taken 5789 | . 727 283 929 243 . 217 745 403 193 2049 Core 1097 | . 133 47 136 42 . . 23 35 16 665 Absorbed by Shields . | . . . . . . . . . . . Core Remaining (%) 69 | 100 . 28 . . . 55 95 . . . Volleys Fired 367 | 1 76 19 91 34 . 7 77 33 9 20 Largest 3 | 2 2 2 3 3 . 3 3 3 3 3 Hottest 195 | 60 70 70 195 159 . 166 166 71 71 79 Shots Fired 923 | 2 152 38 261 87 . 19 225 80 21 38 Gun 784 | 2 152 38 240 27 . 9 199 71 18 28 Cannon 108 | . . . 16 58 . 9 23 2 . . Launcher 31 | . . . 5 2 . 1 3 7 3 10 Special . | . . . . . . . . . . . Kinetic 550 | 1 76 18 149 27 . 6 154 73 18 28 Thermal 324 | . 59 20 107 58 . 12 68 . . . Explosive 31 | . . . 5 2 . 1 3 7 3 10 Electromagnetic 18 | 1 17 . . . . . . . . . Robot Hit Streak 20 | 1 20 6 19 8 . 8 16 14 14 4 Robot Miss Streak 12 | 1 4 2 12 4 . 1 5 2 1 5 Penetration Max . | . . . . . . . . . . . Secondary Targets 11 | . 3 2 3 . . . 1 . . 2 Max Gunslinging Chain 1 | . 1 1 1 . . . 1 . . 1 Shots Hit Robots 561 | 1 98 26 171 46 . 13 113 52 17 24 Core Hits 345 | 1 42 9 136 22 . 7 59 34 15 20 Critical Kills 2 | . . . . 1 . . 1 . . . Critical Parts Destroyed 2 | . 1 . 1 . . . . . . . Critical Strikes 16 | . 1 2 2 1 . 1 9 . . . Burn 11 | . . 2 . . . 1 8 . . . Meltdown 1 | . . . . 1 . . . . . . Destroy 3 | . 1 . 1 . . . 1 . . . Blast 1 | . . . 1 . . . . . . . Melee Attacks 16 | . . . . . . . . 9 . 7 Impact . | . . . . . . . . . . . Slashing 16 | . . . . . . . . 9 . 7 Piercing . | . . . . . . . . . . . Sneak Attacks 2 | . . . . . . . . 2 . . Combat Hostiles . | . . . . . . . . . . . Follow-up Attacks . | . . . . . . . . . . . Damage Inflicted 12113 | 15 1276 358 2820 1145 . 382 2469 1901 542 1205 Guns 7431 | 15 1198 330 2313 195 . 114 1897 762 257 350 Cannons 1167 | . . . 141 677 . 144 165 40 . . Explosions 3090 | . 48 . 322 255 . 124 401 800 285 855 Melee 264 | . . . . . . . . 264 . . Ramming 161 | . 30 28 44 18 . . 6 35 . . Kinetic 5055 | . 616 168 1335 195 . 48 1284 802 257 350 Thermal 3620 | . 477 162 1119 677 . 210 778 197 . . Explosive 2829 | . . . 306 255 . 124 401 603 285 855 Electromagnetic 184 | 15 153 . 16 . . . . . . . Impact . | . . . . . . . . . . . Slashing 264 | . . . . . . . . 264 . . Piercing . | . . . . . . . . . . . Highest Corruption 7 | . 7 7 . . . . 2 . . 1 Average Corruption 4 | . 5 7 . . . . 2 . . 1 Corruption Purged . | . . . . . . . . . . . Effects 63 | . 29 26 . . . . 7 . . 1 Message Errors 15 | . 7 5 . . . . 2 . . 1 Matter Fused 12 | . 9 3 . . . . . . . . Heat Flow Errors 10 | . 6 3 . . . . 1 . . . Energy Discharges 9 | . 3 4 . . . . 2 . . . Data Loss (minor) 8 | . 2 4 . . . . 2 . . . Data Loss (major) 4 | . 1 3 . . . . . . . . Misfires 3 | . 1 2 . . . . . . . . Weapon Failures 2 | . . 2 . . . . . . . . Overload Shots . | . . . . . . . . . . . Overflow Damage 204 | . . . 13 . . . 13 145 . 33 Projectiles 16 | . . . . . . . 1 15 . . Explosions 107 | . . . 13 . . . 12 49 . 33 Melee 81 | . . . . . . . . 81 . . Knockbacks 3 | . . 1 1 . . . . 1 . . Impact 2 | . . 1 . . . . . 1 . . Kinetic 1 | . . . 1 . . . . . . . Secondary . | . . . . . . . . . . . Self-Inflicted Damage 156 | . . . 34 . . . . . 41 81 Shots 7 | . . . 1 . . . . . 1 5 Rammed . | . . . . . . . . . . . Targets Rammed 29 | . 8 6 7 2 . . 2 4 . . Kicked 29 | . 8 6 7 2 . . 2 4 . . Crushed . | . . . . . . . . . . . Highest Temperature 478 | . 277 232 478 319 . 144 156 . . 17 Average Temperature 86 | . 82 82 112 117 . 70 46 . . 10 Received Heat Transfer 2052 | . 324 156 339 84 . 147 324 90 51 537 Effects 7 | . 1 . 4 2 . . . . . . Shutdowns 1 | . . . 1 . . . . . . . Energy Bleed 2 | . 1 . 1 . . . . . . . Interference 3 | . . . 1 2 . . . . . . Damage (minor) 1 | . . . 1 . . . . . . . Siege Activations . | . . . . . . . . . . . Robots Corrupted . | . . . . . . . . . . . Combat Hostiles . | . . . . . . . . . . . Parts Fried . | . . . . . . . . . . . Impact Corruptions . | . . . . . . . . . . . Robots Melted 1 | . . . . 1 . . . . . . Combat Hostiles 1 | . . . . 1 . . . . . . Parts Melted 14 | . 2 1 1 3 . . 7 . . . Heat Transferred 7140 | . 1071 629 1614 1221 . 444 1961 200 . . Parts Sabotaged . | . . . . . . . . . . . Parts Stolen . | . . . . . . . . . . . Parts Stripped . | . . . . . . . . . . . Power Chain Reactions 1 | . 1 . . . . . . . . . Missiles Intercepted . | . . . . . . . . . . . Alert | -11 -10 -10 -9 -9 -9 -8 -8 -7 -7 -7 ------- Run | Scr Mat Min Mat Min Exi Min Mat Fac Low Low Peak Influence 710 | 5 245 176 710 275 . 73 509 235 . . Initial 162 | . 3 46 . 109 . . 27 162 . . Average 188 | 1 104 83 260 128 . 61 282 149 . . Maximum Alert Level 3 | . 1 . 3 1 . . 2 1 . . Low Security (%) 58 | 100 84 100 27 88 . 100 29 67 . . Level 1 35 | . 15 . 62 11 . . 52 32 . . Level 2 6 | . . . 9 . . . 18 . . . Level 3 . | . . . . . . . . . . . Level 4 . | . . . . . . . . . . . Level 5 . | . . . . . . . . . . . High Security . | . . . . . . . . . . . Max Security . | . . . . . . . . . . . Squads Dispatched 18 | . 3 . 6 . . . 1 7 . 1 Investigation 10 | . 2 . 5 . . . . 3 . . Extermination 2 | . . . . . . . . 2 . . Reinforcement 4 | . 1 . 1 . . . . 2 . . Assault 1 | . . . . . . . . . . 1 Garrison 1 | . . . . . . . 1 . . . Intercept . | . . . . . . . . . . . Construction Impeded 1 | . . . . . . . . 1 . . Haulers Reinforced 1 | . . . . . . . . 1 . . Cargo Convoy Interrupts . | . . . . . . . . . . . Stealth | -11 -10 -10 -9 -9 -9 -8 -8 -7 -7 -7 --------- Run | Scr Mat Min Mat Min Exi Min Mat Fac Low Low Distress Signals 4 | . . . 1 . . . 2 1 . . Communications Jammed . | . . . . . . . . . . . Distress Signals . | . . . . . . . . . . . Times Spotted 173 | . 20 5 46 20 . 3 34 15 7 23 Peak Tracking Total 11 | . 3 3 6 4 . 3 5 5 4 11 Tactical Retreats 15 | . . . 6 5 . . 1 . . 3 Traps | -11 -10 -10 -9 -9 -9 -8 -8 -7 -7 -7 ------- Run | Scr Mat Min Mat Min Exi Min Mat Fac Low Low Traps Triggered 11 | . 6 . 2 . . . 1 2 . . Indirectly 1 | . . . 1 . . . . . . . Trap Hack Attempts . | . . . . . . . . . . . Triggered . | . . . . . . . . . . . Disarmed 16 | . . . . . . . 16 . . . Reprogrammed . | . . . . . . . . . . . Reused . | . . . . . . . . . . . Traps Extracted . | . . . . . . . . . . . Installed . | . . . . . . . . . . . Triggered 4 | . . . . 1 . . . . 3 . Machines | -11 -10 -10 -9 -9 -9 -8 -8 -7 -7 -7 ---------- Run | Scr Mat Min Mat Min Exi Min Mat Fac Low Low Machines Disabled 19 | . 2 1 9 . . . 4 3 . . Max in Single Turn 4 | . 1 1 4 . . . 1 2 . . Garrison Access 2 | . . . . . . . 1 1 . . Machines Sabotaged . | . . . . . . . . . . . Garrisons Compromised . | . . . . . . . . . . . Overloaded Fab Kills . | . . . . . . . . . . . Fab Network Shutdowns . | . . . . . . . . . . . Hacking | -11 -10 -10 -9 -9 -9 -8 -8 -7 -7 -7 --------- Run | Scr Mat Min Mat Min Exi Min Mat Fac Low Low Machines Accessed 33 | . 7 1 10 1 1 . 7 6 . . Terminals 20 | . 6 1 6 . . . 4 3 . . Fabricators 1 | . . . . . . . . 1 . . Repair Stations 3 | . . . 1 . . . 1 1 . . Recycling Units 3 | . 1 . 2 . . . . . . . Scanalyzers 2 | . . . 1 . . . 1 . . . Garrison Access 2 | . . . . . . . 1 1 . . Total Hacks 105 | . 22 3 35 1 4 . 26 14 . . Successful 74 | . 15 2 26 1 4 . 17 9 . . Failed 31 | . 7 1 9 . . . 9 5 . . Catastrophic 2 | . 2 . . . . . . . . . Database Lockouts . | . . . . . . . . . . . Manual 56 | . 19 2 16 . . . 12 7 . . Terminals 70 | . 21 3 23 . . . 15 8 . . Fabricators 3 | . . . . . . . . 3 . . Repair Stations 12 | . . . 2 . . . 8 2 . . Recycling Units 3 | . 1 . 2 . . . . . . . Scanalyzers 10 | . . . 8 . . . 2 . . . Garrison Access 2 | . . . . . . . 1 1 . . Terminal Hacks 32 | . 9 1 10 1 4 . 5 2 . . Record 4 | . . . . . 4 . . . . . Part Schematic 1 | . . . . . . . 1 . . . Prototype ID Bank 5 | . 4 . 1 . . . . . . . Open Door 1 | . . . . 1 . . . . . . Machine Index 1 | . . . . . . . 1 . . . Terminal Index 3 | . 1 . 1 . . . . 1 . . Alert Level 4 | . 1 . 3 . . . . . . . Unreport Threat 3 | . . . 3 . . . . . . . Locate Traps 1 | . . . . . . . . 1 . . Disarm Traps 3 | . . . . . . . 3 . . . Zone Layout 6 | . 3 1 2 . . . . . . . Fabricator Hacks 2 | . . . . . . . . 2 . . Load Schematic 1 | . . . . . . . . 1 . . Build 1 | . . . . . . . . 1 . . Repair Station Hacks 10 | . . . 1 . . . 7 2 . . Scan Component 6 | . . . 1 . . . 4 1 . . Repair 4 | . . . . . . . 3 1 . . Recycling Unit Hacks . | . . . . . . . . . . . Scanalyzer 10 | . . . 8 . . . 2 . . . Insert Component 5 | . . . 4 . . . 1 . . . Analyze 5 | . . . 4 . . . 1 . . . Garrison Access Hacks 2 | . . . . . . . 1 1 . . Seal Access 2 | . . . . . . . 1 1 . . Unauthorized Hacks 18 | . 6 1 7 . . . 2 2 . . Terminals 15 | . 5 1 5 . . . 2 2 . . Assimilate 2 | . . . . . . . 1 1 . . Botnet 13 | . 5 1 5 . . . 1 1 . . Fabricators . | . . . . . . . . . . . Repair Stations . | . . . . . . . . . . . Recycling Units 3 | . 1 . 2 . . . . . . . Tunnel 3 | . 1 . 2 . . . . . . . Scanalyzers . | . . . . . . . . . . . Garrison Access . | . . . . . . . . . . . Data Cores Recovered . | . . . . . . . . . . . Used . | . . . . . . . . . . . Hacking Detections 25 | . 6 1 7 . . . 6 5 . . Full Trace Events 3 | . . . 1 . . . . 2 . . Feedback Events . | . . . . . . . . . . . Feedback Blocked . | . . . . . . . . . . . Robot Schematics Acquired . | . . . . . . . . . . . Robots Built . | . . . . . . . . . . . Matter . | . . . . . . . . . . . Time . | . . . . . . . . . . . Total Robot Build Rating . | . . . . . . . . . . . Part Schematics Acquired 6 | . . . 4 . . . 2 . . . Parts Built 1 | . . . . . . . . 1 . . Matter 146 | . . . . . . . . 146 . . Time 36 | . . . . . . . . 36 . . Total Part Build Rating 3 | . . . . . . . . 3 . . Parts Repaired 4 | . . . . . . . 3 1 . . Time 124 | . . . . . . . 102 22 . . Parts Recycled . | . . . . . . . . . . . Recycled Matter . | . . . . . . . . . . . Retrieved Matter . | . . . . . . . . . . . Retrieved Components . | . . . . . . . . . . . Parts Scanalyzed 5 | . . . 4 . . . 1 . . . Part Schematics Acquired 5 | . . . 4 . . . 1 . . . Parts Damaged . | . . . . . . . . . . . Bothacking | -11 -10 -10 -9 -9 -9 -8 -8 -7 -7 -7 ------------ Run | Scr Mat Min Mat Min Exi Min Mat Fac Low Low Used RIF Installer . | . . . . . . . . . . . Robots Hacked . | . . . . . . . . . . . Non-combat . | . . . . . . . . . . . Combat . | . . . . . . . . . . . Robot Hacks Applied . | . . . . . . . . . . . Relay Couplers Released . | . . . . . . . . . . . Robots Rewired . | . . . . . . . . . . . Allies Hacked . | . . . . . . . . . . . Hacks Repelled . | . . . . . . . . . . . Allies | -11 -10 -10 -9 -9 -9 -8 -8 -7 -7 -7 -------- Run | Scr Mat Min Mat Min Exi Min Mat Fac Low Low Total Allies 8 | . . 4 . 2 . . 1 1 . . Largest Group 4 | . . 4 4 2 . . 1 2 . . Highest-Rated Group 71 | . . 71 71 41 . . 10 20 . . Highest-Rated Ally 31 | . . 31 31 31 . . 10 10 . . Total Orders . | . . . . . . . . . . . Ally Attacks 28 | . . . 15 13 . . . . . . Total Damage 415 | . . . 204 211 . . . . . . Kills 5 | . . . 4 1 . . . . . . Allies Corrupted . | . . . . . . . . . . . Allies Melted . | . . . . . . . . . . . Intel | -11 -10 -10 -9 -9 -9 -8 -8 -7 -7 -7 ------- Run | Scr Mat Min Mat Min Exi Min Mat Fac Low Low Robot Analysis Total . | . . . . . . . . . . . Derelict Logs Recovered 4 | . . 1 . 1 . . . . 1 1 Drone Launches . | . . . . . . . . . . . Drone Recoveries . | . . . . . . . . . . . Exploration | -11 -10 -10 -9 -9 -9 -8 -8 -7 -7 -7 ------------- Run | Scr Mat Min Mat Min Exi Min Mat Fac Low Low Turns Passed 11621 | 56 1448 749 3004 1753 494 173 1836 1301 454 353 Spaces Moved 4758 | 41 598 334 927 521 177 69 843 661 313 274 Core 112 | 17 . . . . . . . . . 95 Treads . | . . . . . . . . . . . Legs 4646 | 24 598 334 927 521 177 69 843 661 313 179 Wheels . | . . . . . . . . . . . Hover . | . . . . . . . . . . . Flight . | . . . . . . . . . . . Fastest Speed 50 | 50 120 200 200 200 280 200 120 120 120 50 Average Speed 191 | 106 183 200 251 279 280 209 158 132 120 96 Slowest Speed 280 | 150 280 200 280 280 280 280 200 200 120 200 Overloaded Moves . | . . . . . . . . . . . Propulsion Burnouts . | . . . . . . . . . . . Robots Hopped . | . . . . . . . . . . . Cave-ins Triggered 1 | . . . . . . . . . . 1 Exploration Rate (%) 50 | 5 71 73 84 67 53 21 64 15 49 51 Regions Visited 10 Branch Regions 6 Pre-discovered Areas 5 | . 1 . 2 1 1 . . . . . Known Exits Taken 2 | . . . . . . . . 1 1 . Unknown Exits Taken 8 | 1 1 1 1 1 1 1 1 . . . Scrap Searched 6 | . . 2 . 1 . 1 . . 1 1 Spaces Dug 28 | . . . 9 . . 9 . 3 . 7 Terrain Destroyed 225 | . 3 . 69 24 . 9 20 30 6 64 Melee 10 | . . . . . . . . 3 . 7 Projectile 4 | . . . 2 . . . . . . 2 AOE 211 | . 3 . 67 24 . 9 20 27 6 55 Terrain Rammed . | . . . . . . . . . . . Walls Destroyed . | . . . . . . . . . . . Machines Disabled . | . . . . . . . . . . . Actions | -11 -10 -10 -9 -9 -9 -8 -8 -7 -7 -7 --------- Run | Scr Mat Min Mat Min Exi Min Mat Fac Low Low Total 6529 | 48 796 372 1398 748 177 83 1195 1013 377 322 Wait 1076 | . 57 9 301 172 . 1 215 270 50 1 Move 4748 | 40 597 333 926 520 176 68 842 660 312 274 Hop . | . . . . . . . . . . . Pick Up 63 | 1 21 . 15 5 . 2 13 5 . 1 Fast Attach 38 | 6 4 . 7 3 . . 14 2 . 2 Attach 23 | . 2 1 5 1 . 1 4 3 . 6 Detach . | . . . . . . . . . . . Swap 83 | . 15 2 19 3 . 3 7 23 5 6 Drop 85 | . 16 2 27 8 1 1 21 4 1 4 Fire 367 | 1 76 19 91 34 . 7 77 33 9 20 Melee 16 | . . . . . . . . 9 . 7 Ram . | . . . . . . . . . . . Kick 29 | . 8 6 7 2 . . 2 4 . . Crush . | . . . . . . . . . . . Escape Stasis . | . . . . . . . . . . . Rewire 1 | . . . . . . . . . . 1 Trap . | . . . . . . . . . . . Miscellaneous . | . . . . . . . . . . . Route ------- -11/Scrapyard -10/Materials (discovered 4 exits: *Mat x3 / *Min) -10/Mines (discovered 2 exits: *Mat x2) -9/Materials (discovered 2 exits: *Mat / *Min) -9/Mines (discovered 3 exits: *Mat x2 / *Exi) -9/Exiles -8/Mines -8/Materials (discovered 2 exits: *Fac x2) -7/Factory -7/Lower Caves -7/Lower Caves (discovered 1 exit: [*Dat]) History --------- Turn | Location | Event 40 | -11/Scrapyard | Discovered new exit (range 15) 57 | -11/Scrapyard | Entered Materials 214 | -10/Materials | Discovered new exit (range 12) 320 | -10/Materials | Build established: Mutant 674 | -10/Materials | Discovered new exit (range 16) 809 | -10/Materials | Discovered new exit (range 15) 1241 | -10/Materials | Core integrity fell below 50% 1395 | -10/Materials | Discovered new exit (range 7) 1505 | -10/Materials | Entered Mines 1565 | -10/Mines | Learned 2 Materials zone layouts 1776 | -10/Mines | Discovered new exit (range 6) 2001 | -10/Mines | Received a Mining Laser from a helpful Derelict 2214 | -10/Mines | Discovered new exit (range 14) 2242 | -10/Mines | Assisted by bots powering up and referring to "LRC-V3" 2254 | -10/Mines | Entered Materials 2254 | -9/Materials | Accompanied by 4 allies 2254 | -9/Materials | Evolved 2 slots: Utility x1, Weapon x1 2565 | -9/Materials | Build established: Tank 3189 | -9/Materials | Build established: Scavenger-Tank 3274 | -9/Materials | Discovered new exit (range 9) 3501 | -9/Materials | Build established: Tank 3893 | -9/Materials | Discovered new exit (range 6) 5258 | -9/Materials | Entered Mines 5339 | -9/Mines | Discovered new exit (range 9) 5409 | -9/Mines | A weapon hastily lodged in a ceiling crevice suddenly fell to the ground 5587 | -9/Mines | Excavation squad dispatched 5587 | -9/Mines | A large section of the Mines collapsed 5959 | -9/Mines | Learned location of Zion (-6) 6741 | -9/Mines | Found the Drone Emporium 6763 | -9/Mines | Found Prototype Device 6763 | -9/Mines | Identified Bomb Drone Bay 6918 | -9/Mines | Discovered new exit (range 11) 6994 | -9/Mines | Deemed a non-threat by the Exiles lab entrance 6997 | -9/Mines | Discovered new exit (range 5) 7011 | -9/Mines | Entered Exiles 7081 | -9/Exiles | Met 8R-AWN 7123 | -9/Exiles | Met EX-HEX 7272 | -9/Exiles | Met EX-DEC 7477 | -9/Exiles | Discovered new exit (range 10) 7505 | -9/Exiles | Entered Mines 7552 | -8/Mines | Discovered new exit (range 11) 7678 | -8/Mines | Entered Materials 7678 | -8/Materials | Evolved 2 slots: Propulsion x1, Utility x1 7887 | -8/Materials | Build established: Scavenger-Tank 8385 | -8/Materials | Lost 3 parts (1n1u1w) 8419 | -8/Materials | Discovered new exit (range 5) 8657 | -8/Materials | Build established: Scavenger-Gunner 9010 | -8/Materials | Discovered new exit (range 10) 9042 | -8/Materials | Build established: Scavenger-Tank 9078 | -8/Materials | Garrison activated, responded to threat 9275 | -8/Materials | Repaired Carbon-fiber Leg 9308 | -8/Materials | Repaired Imp. Aluminum Leg 9342 | -8/Materials | Repaired Autogun 9514 | -8/Materials | Entered Factory 9514 | -7/Factory | Accompanied by 1 ally 9514 | -7/Factory | Evolved 2 slots: Utility x2 9566 | -7/Factory | Repaired Imp. Medium Armor Plating 9908 | -7/Factory | Build established: Scavenger-Mutant 10039 | -7/Factory | Fabricated Actuator Array (x1) 10431 | -7/Factory | Discovered new exit (range 8) 10438 | -7/Factory | Identified exit to Lower Caves 10664 | -7/Factory | Build established: Scavenger-Skirmisher 10815 | -7/Factory | Entered Lower Caves 10975 | -7/Lower Caves | Attracted the attention of an 0b10 checkpoint 11147 | -7/Lower Caves | Learned location of 1 exit from Factory 11231 | -7/Lower Caves | Discovered new exit (range 11) 11249 | -7/Lower Caves | Identified exit to Lower Caves 11269 | -7/Lower Caves | Entered another Lower Caves area 11295 | -7/Lower Caves | Encountered a Warlord checkpoint 11322 | -7/Lower Caves | Learned location of 1 exit from Factory 11505 | -7/Lower Caves | Attracted the attention of an 0b10 outpost 11505 | -7/Lower Caves | Crushed by falling debris 11536 | -7/Lower Caves | Spotted B-75 Beast 11552 | -7/Lower Caves | Core integrity fell below 50% 11580 | -7/Lower Caves | Core integrity fell below 20% 11607 | -7/Lower Caves | Lost 15 parts (1p4n4u6w) 11622 | -7/Lower Caves | Discovered new exit (range 7) 11622 | -7/Lower Caves | Destroyed by S-27 Virus with Autogun Last Messages --------------- 11561_ Cooling System destroyed. 11561_ Slug penetrates B-75 Beast. 11564_ The unstable cave ceiling collapses. 11564_ Gauss Rifle destroyed. 11564_ Slug penetrates Earth. 11567_ The unstable cave ceiling collapses. 11569_ Imp. Medium Armor Plating destroyed. 11570_ Autogun destroyed. 11570_ Dropped Lrg. Storage Unit. 11571_ C-30 ARC bursts open, deploying its payload. 11571_ G-50 Soldier unfolds itself. 11571_ L-41 Fighter unfolds itself. 11571_ Dropped Gauss Rifle. 11571_ Dropped Aluminum Leg. 11572_ The unstable cave ceiling collapses. 11572_ Acquired Imp. Sensor Array. 11574_ Acquired Katana. 11576_ Katana destroyed. 11576_ Imp. Sensor Array destroyed. 11622_ EXIT=FOUND Map ----- +----------------------------------------------------+ | ???????????????# ## #### ## #?? | | ??????????????## #?? | | ?????????? ## ### #### #?? | | ????????? ##### #??# ### | | ????????? ### ## #??# ## | | ??????????# ### ##?## | | ???????????# ### ## ####?## | | ????????????????# #### ### #????# # | | ????????????????## #???# #?# ????## # | | ?????????????????# #???## ##?## ????## | | ????????????????## ##### ##??# ????### | | ????????????????# #??# ?????### | | ????????????????# #?## ????# # | | ????????????????# ### #?# ##???# # | | ????????????????# #?#### #?###????#### | | ???????????????## ####### # #??????????## | | ??????????????## ## ## #??????????## | | ??????????????# # #?### #???????????? | | ??????????????### # #????# ???????????? | | ???????????????## ## #####? #????????????? | | ???????????????# ##? ????#????????????? | | ???????????" ""# #?? ???????????????????? | | ??????????????# ### ##???????????????????? | | ??????????????# #### ##????????????????????? | | ???????????? "" #???## ##?????????????????????? | | ???????????? ?????## @#??????????????????????? | | ?????????? ??????# ?????????????????????? | | ?????????? ??????# # ???????????????????? | | ????????? ???????######## s?????????????????? | | ????????# ##???????????????? s???????????????? | | ?????????####????????????????????##??????????????? | | ?????????????????????????????????????????????????? | | ?????????????????????????????????????????????????? | | ?????????????????????????????????????????????????? | | ?????????????????????????????????????????????????? | | ?????????????????????????????????????????????????? | | ?????????????????????????????????????????????????? | | ?????????????????????????????????????????????????? | | ?????????????????????????????????????????????????? | | ?????????????????????????????????????????????????? | | ?????????????????????????????????????????????????? | | ?????????????????????????????????????????????????? | | ?????????????????????????????????????????????????? | | ?????????????????????????????????????????????????? | | ?????????????????????????????????????????????????? | | ?????????????????????????????????????????????????? | | ?????????????????????????????????????????????????? | | | | | | | +----------------------------------------------------+ Best States ------------- Heat Dissipation 56 Energy Generation 14 Energy Capacity 280 Matter Stores 300 Matter Capacity 300 Sight Range 16 Robot Scan Range 15 Terrain Scan Density 10 Armor Coverage 225 Power Shielding 66 Evasion (%) 55 Offensive Hacking 20 Defensive Hacking 10 Item Schematics ----------------- Hacking Suite | -9/Materials | Scanalyzed Hcp. Storage Unit | -9/Materials | Scanalyzed Cooling System | -9/Materials | Scanalyzed Mining Claw | -9/Materials | Scanalyzed Lrg. Storage Unit | -8/Materials | Scanalyzed Actuator Array | -8/Materials | Hacked Robot Schematics ------------------ None Fabricated ------------ Actuator Array | x1 | -7/Factory Alien Tech Used ----------------- None Achievements -------------- None Challenges ------------ None Game ------ Seed CatalystLayeredExtractor Manual? 0 Play Time 00:57:25 Cumulative 1223.6 hours Start 2021.05.30 @ 19:17:36 End 2021.05.30 @ 20:10:55 Sessions 1 Manual Loads 0 Difficulty Rogue Special Mode None Game No. 415 Rogue 415 Adventurer 0 Explorer 0 Win Type - Total 89 Types 18/12/37/5/1/2/12/1/1 Lore% 97 Gallery% 96 Achievement% 85 Wizard Run 0 Options --------- ASCII 0 Keyboard 0 Movement Numpad Keybinds 0 Fullscreen 1 Font 18/SmallcapsGlow Map View 76x50 Tactical HUD 1 Map Filters NONE Filters NONE Steam 1 RUN: 51c95c19-538b-40b5-9300-1b3b5bd52bfb